fUST/lending_fUST_20250624
["ID","MTS","AMOUNT","RATE_DAILY","PERIOD"]
[367208048,1750702246838,-460.0,0.00019855,2]
[367208049,1750702246847,-547.44,0.00019855,2]
[367208050,1750702246857,-460.0,0.00019855,2]
[367208051,1750702246866,-608.12,0.00019855,2]
[367208052,1750702246875,-1778.0,0.00019855,2]
[367208053,1750702246885,-715.53,0.00019855,2]
[367208054,1750702246895,-460.0,0.00019855,2]
[367208055,1750702246904,-2810.69,0.00019855,2]
[367208056,1750702246916,-460.0,0.00019855,2]
[367208057,1750702246925,-460.0,0.00019855,2]
[367208058,1750702246934,-634.55,0.00019855,2]
[367208059,1750702246944,-2576.68,0.00019855,2]
[367208060,1750702246953,-460.0,0.00019855,2]
[367208061,1750702246962,-151.0,0.00019855,2]
[367208062,1750702246971,-460.0,0.00019855,2]
[367208063,1750702246980,-460.0,0.00019855,2]
[367208064,1750702246990,-460.0,0.00019855,2]
[367208065,1750702246999,-1321.89,0.00019855,2]
[367208066,1750702247009,-739.43,0.00019855,2]
[367208067,1750702247018,-460.0,0.00019855,2]
[367208068,1750702247027,-460.0,0.00019855,2]
[367208069,1750702247037,-460.0,0.00019855,2]
[367208070,1750702247046,-357.76470952,0.00019855,2]
[367208071,1750702247055,-460.0,0.00019855,2]
[367208072,1750702247065,-539.95755019,0.00019855,2]
[367208073,1750702247074,-443.84815153,0.00019855,2]
[367208074,1750702247083,-487.28,0.00019855,2]
[367208075,1750702247093,-460.0,0.00019855,2]
[367208076,1750702247102,-460.0,0.00019855,2]
[367208077,1750702247112,-333.33982744,0.00019855,2]
[367208078,1750702247120,-460.0,0.00019855,2]
[367208079,1750702247130,-440.0,0.00019855,2]
[367208080,1750702247139,-460.0,0.00019855,2]
[367208081,1750702247148,-460.0,0.00019855,2]
[367208082,1750702247160,-432.56802118,0.00019855,2]
[367208083,1750702247169,-460.0,0.00019855,2]
[367208084,1750702247179,-357.3406,0.00019855,2]
[367208085,1750702247190,-183.723989,0.00019855,2]
[367208086,1750702247199,-1171.058408,0.00019855,2]
[367208087,1750702247209,-460.0,0.00019855,2]
[367208088,1750702247218,-460.0,0.00019855,2]
[367208089,1750702247228,-443.32240855,0.00019855,2]
[367208090,1750702247238,-183.723989,0.00019855,2]
[367208091,1750702247247,-460.0,0.00019855,2]
[367208092,1750702247257,-816.19,0.00019855,2]
[367208093,1750702247266,-1171.058408,0.00019855,2]
[367208094,1750702247279,-460.0,0.00019855,2]
[367208095,1750702247290,-235.39785147,0.00019855,2]
[367208096,1750702247300,-1455.95,0.00019855,2]
[367208097,1750702247310,-460.0,0.00019855,2]
[367208098,1750702247321,-460.0,0.00019855,2]
[367208099,1750702247330,-151.0,0.00019855,2]
[367208100,1750702247340,-1159.89,0.00019855,2]
[367208101,1750702247350,-460.0,0.00019855,2]
[367208102,1750702247359,-893.45,0.00019855,2]
[367208103,1750702247369,-218.15013796,0.00019855,2]
[367208104,1750702247381,-3219.82,0.00019855,2]
[367208105,1750702247391,-492.39,0.00019855,2]
[367208106,1750702247401,-460.0,0.00019855,2]
[367208107,1750702247414,-460.0,0.00019855,2]
[367208108,1750702247424,-1312.29,0.00019855,2]
[367208109,1750702247433,-200.70049308,0.00019855,2]
[367208110,1750702247443,-460.0,0.00019855,2]
[367208111,1750702247454,-300.0,0.00019855,2]
[367208112,1750702247465,-447.76309123,0.00019855,2]
[367208113,1750702247475,-589.83,0.00019855,2]
[367208114,1750702247485,-850.61,0.00019855,2]
[367208115,1750702247496,-2063.95,0.00019855,2]
[367208116,1750702247505,-468.72,0.00019855,2]
[367208117,1750702247515,-460.0,0.00019855,2]
[367208118,1750702247525,-571.37,0.00019855,2]
[367208119,1750702247535,-1310.44,0.00019855,2]
[367208120,1750702247545,-2085.6,0.00019855,2]
[367208121,1750702247555,-151.0,0.00019855,2]
[367208122,1750702247564,-460.0,0.00019855,2]
[367208123,1750702247574,-460.0,0.00019855,2]
[367208124,1750702247583,-460.0,0.00019855,2]
[367208125,1750702247593,-460.0,0.00019855,2]
[367208126,1750702247602,-941.77,0.00019855,2]
[367208127,1750702247612,-982.4,0.00019855,2]
[367208128,1750702247622,-585.79,0.00019855,2]
[367208129,1750702247631,-460.0,0.00019855,2]
[367208130,1750702247641,-460.0,0.00019855,2]
[367208131,1750702247650,-460.0,0.00019855,2]
[367208132,1750702247663,-460.0,0.00019855,2]
[367208133,1750702247674,-770.98,0.00019855,2]
[367208134,1750702247689,-356.626254,0.00019855,2]
[367208135,1750702247699,-356.626254,0.00019855,2]
[367208136,1750702247708,-704.38,0.00019855,2]
[367208137,1750702247718,-655.58,0.00019855,2]
[367208138,1750702247727,-556.65,0.00019855,2]
[367208139,1750702247738,-460.0,0.00019855,2]
[367208140,1750702247747,-460.0,0.00019855,2]
[367208141,1750702247757,-500.0,0.00019855,2]
[367208142,1750702247766,-195.76815156,0.00019857,2]
[367208143,1750702247776,-460.0,0.00019857,2]
[367208144,1750702247785,-460.0,0.00019857,2]
[367208145,1750702247795,-460.0,0.00019857,2]
[367208146,1750702247804,-460.0,0.00019857,2]
[367208147,1750702247814,-460.0,0.00019857,2]
[367208148,1750702247823,-417.18234589,0.00019857,2]
[367208149,1750702247833,-460.0,0.00019857,2]
[367208150,1750702247843,-460.0,0.00019857,2]
[367208151,1750702247853,-460.0,0.00019857,2]
[367208152,1750702247862,-460.0,0.00019857,2]
[367208153,1750702247871,-460.0,0.00019857,2]
[367208154,1750702247881,-460.0,0.00019857,2]
[367208155,1750702247891,-460.0,0.00019857,2]
[367208156,1750702247900,-532.05,0.00019857,2]
[367208157,1750702247910,-460.0,0.00019857,2]
[367208158,1750702247920,-151.0,0.00019857,2]
[367208159,1750702247929,-151.0,0.00019857,2]
[367208160,1750702247939,-151.0,0.00019857,2]
[367208161,1750702247949,-151.0,0.00019857,2]
[367208162,1750702247959,-151.0,0.00019857,2]
[367208163,1750702247969,-151.0,0.00019857,2]
[367208164,1750702247978,-303.644146,0.00019857,2]
[367208165,1750702247988,-303.644146,0.00019857,2]
[367208166,1750702247998,-151.0,0.00019857,2]
[367208167,1750702248008,-151.0,0.00019857,2]
[367208168,1750702248018,-151.0,0.00019857,2]
[367208169,1750702248028,-151.0,0.00019857,2]
[367208170,1750702248037,-1284.96,0.00019857,2]
[367208171,1750702248047,-3396.84,0.00019857,2]
[367208172,1750702248057,-402.544214,0.00019857,2]
[367208173,1750702248067,-908.56,0.00019857,2]
[367208174,1750702248077,-402.544214,0.00019857,2]
[367208175,1750702248087,-460.0,0.00019857,2]
[367208176,1750702248097,-460.0,0.00019857,2]
[367208177,1750702248108,-151.0,0.00019857,2]
[367208178,1750702248118,-152.016174,0.00019857,2]
[367208179,1750702248128,-151.0,0.00019857,2]
[367208180,1750702248138,-648.74,0.00019857,2]
[367208181,1750702248148,-657.85,0.00019857,2]
[367208182,1750702248158,-460.0,0.00019857,2]
[367208183,1750702248169,-183.723989,0.00019857,2]
[367208184,1750702248179,-1171.058408,0.00019857,2]
[367208185,1750702248189,-460.0,0.00019857,2]
[367208186,1750702248199,-183.723989,0.00019857,2]
[367208187,1750702248209,-1178.32,0.00019857,2]
[367208188,1750702248219,-1171.058408,0.00019857,2]
[367208189,1750702248230,-460.0,0.00019857,2]
[367208190,1750702248240,-2051.07,0.00019857,2]
[367208191,1750702248250,-15965.38,0.00019857,2]
[367208192,1750702248260,-2376.67,0.00019857,2]
[367208193,1750702248271,-460.0,0.00019857,2]
[367208194,1750702248283,-460.0,0.00019857,2]
[367208195,1750702248293,-1259.65,0.00019857,2]
[367208196,1750702248303,-2831.83,0.00019857,2]
[367208197,1750702248313,-6457.57,0.00019857,2]
[367208198,1750702248324,-1904.77,0.00019857,2]
[367208199,1750702248334,-460.0,0.00019858,2]
[367208200,1750702248343,-655.41,0.00019858,2]
[367208201,1750702248354,-460.0,0.00019858,2]
[367208202,1750702248365,-460.0,0.00019858,2]
[367208203,1750702248375,-460.0,0.00019858,2]
[367208204,1750702248385,-440.0,0.00019858,2]
[367208205,1750702248395,-460.0,0.00019858,2]
[367208206,1750702248405,-591.26,0.00019858,2]
[367208207,1750702248417,-460.0,0.00019858,2]
[367208208,1750702248427,-460.0,0.00019859,2]
[367208209,1750702248437,-625.48,0.00019859,2]
[367208210,1750702248448,-474.35,0.0001986,2]
[367208211,1750702248458,-575.15303187,0.0001986,2]
[367208212,1750702248469,-460.0,0.0001986,2]
[367208213,1750702248479,-460.0,0.0001986,2]
[367208214,1750702248489,-724.42,0.0001986,2]
[367208215,1750702248500,-300.812604,0.0001986,2]
[367208216,1750702248510,-151.0,0.0001986,2]
[367208217,1750702248521,-585.5,0.0001986,2]
[367208218,1750702248531,-1687.04,0.0001986,2]
[367208219,1750702248542,-900.91,0.0001986,2]
[367208220,1750702248552,-1661.82,0.0001986,2]
[367208221,1750702248562,-460.0,0.0001986,2]
[367208222,1750702248572,-981.17,0.0001986,2]
[367208223,1750702248582,-151.0,0.0001986,2]
[367208224,1750702248593,-1201.637698,0.0001986,2]
[367208225,1750702248602,-1201.637698,0.0001986,2]
[367208226,1750702248613,-856.33,0.0001986,2]
[367208227,1750702248623,-151.0,0.0001986,2]
[367208228,1750702248633,-375.83674535,0.0001986,2]
[367208229,1750702248643,-460.0,0.0001986,2]
[367208230,1750702248653,-460.0,0.0001986,2]
[367208231,1750702248666,-1474.59,0.0001986,2]
[367208232,1750702248676,-460.0,0.0001986,2]
[367208233,1750702248686,-265.892581,0.0001986,2]
[367208234,1750702248696,-460.0,0.0001986,2]
[367208235,1750702248707,-460.0,0.0001986,2]
[367208236,1750702248717,-439.41544095,0.0001986,2]
[367208237,1750702248727,-460.0,0.0001986,2]
[367208238,1750702248737,-1301.19,0.0001986,2]
[367208239,1750702248747,-460.0,0.0001986,2]
[367208240,1750702248757,-151.0,0.0001986,2]
[367208241,1750702248768,-460.0,0.0001986,2]
[367208242,1750702248778,-460.0,0.0001986,2]
[367208243,1750702248788,-460.0,0.0001986,2]
[367208244,1750702248798,-508.04,0.0001986,2]
[367208245,1750702248808,-460.0,0.0001986,2]
[367208246,1750702248818,-460.0,0.0001986,2]
[367208247,1750702248828,-205.184865,0.0001986,2]
[367208248,1750702248837,-205.184865,0.0001986,2]
[367208249,1750702248847,-460.0,0.0001986,2]
[367208250,1750702248857,-929.23,0.0001986,2]
[367208251,1750702248867,-602.7039932,0.0001986,2]
[367208252,1750702248876,-606.44848668,0.0001986,2]
[367208253,1750702248886,-735.13,0.0001986,2]
[367208254,1750702248897,-1168.664466,0.0001986,2]
[367208255,1750702248907,-1168.664466,0.0001986,2]
[367208256,1750702248921,-460.0,0.0001986,2]
[367208257,1750702248931,-587.75,0.0001986,2]
[367208258,1750702248941,-2121.29,0.0001986,2]
[367208259,1750702248952,-927.39,0.0001986,2]
[367208260,1750702248962,-594.5,0.0001986,2]
[367208261,1750702248983,-681.19,0.0001986,2]
[367208262,1750702248996,-2543.97,0.0001986,2]
[367208263,1750702249007,-460.0,0.0001986,2]
[367208264,1750702249018,-1189.72,0.0001986,2]
[367208265,1750702249029,-402.544214,0.0001986,2]
[367208266,1750702249039,-402.544214,0.0001986,2]
[367208267,1750702249050,-1227.09,0.0001986,2]
[367208268,1750702249061,-773.52,0.0001986,2]
[367208269,1750702249071,-193.642922,0.0001986,2]
[367208270,1750702249082,-505.38,0.0001986,2]
[367208271,1750702249093,-460.0,0.0001986,2]
[367208272,1750702249105,-1234.97,0.0001986,2]
[367208273,1750702249116,-7516.55,0.0001986,2]
[367208274,1750702249127,-4782.92,0.0001986,2]
[367208275,1750702249138,-569.62928079,0.0001986,2]
[367208276,1750702249149,-2097.54,0.0001986,2]
[367208277,1750702249159,-1077.35,0.0001986,2]
[367208278,1750702249172,-794.81,0.0001986,2]
[367208279,1750702249183,-460.0,0.0001986,2]
[367208280,1750702249194,-151.0,0.0001986,2]
[367208281,1750702249205,-560.47,0.0001986,2]
[367208282,1750702249215,-4182.16,0.0001986,2]
[367208283,1750702249226,-791.3,0.0001986,2]
[367208284,1750702249236,-5445.98,0.0001986,2]
[367208285,1750702249247,-460.0,0.0001986,2]
[367208286,1750702249257,-606.04,0.0001986,2]
[367208287,1750702249268,-151.0,0.0001986,2]
[367208288,1750702249281,-460.0,0.0001986,2]
[367208289,1750702249291,-1050.77,0.0001986,2]
[367208290,1750702249302,-1341.05,0.0001986,2]
[367208291,1750702249312,-9283.48,0.0001986,2]
[367208292,1750702249324,-356.626254,0.0001986,2]
[367208293,1750702249335,-460.0,0.0001986,2]
[367208294,1750702249345,-356.626254,0.0001986,2]
[367208295,1750702249357,-1949.77,0.0001986,2]
[367208296,1750702249368,-2323.85,0.00019861,2]
[367208297,1750702249378,-460.0,0.00019861,2]
[367208298,1750702249388,-705.33,0.00019861,2]
[367208299,1750702249398,-919.28,0.00019861,2]
[367208300,1750702249408,-460.0,0.00019861,2]
[367208301,1750702249422,-460.0,0.00019861,2]
[367208302,1750702249432,-460.0,0.00019861,2]
[367208303,1750702249442,-460.0,0.00019861,2]
[367208304,1750702249452,-460.0,0.00019861,2]
[367208305,1750702249462,-460.0,0.00019861,2]
[367208306,1750702249473,-460.0,0.00019861,2]
[367208307,1750702249483,-460.0,0.00019861,2]
[367208308,1750702249494,-460.0,0.00019861,2]
[367208309,1750702249505,-460.0,0.00019861,2]
[367208310,1750702249516,-662.4,0.00019861,2]
[367208311,1750702249527,-460.0,0.00019861,2]
[367208312,1750702249538,-460.0,0.00019861,2]
[367208313,1750702249550,-503.42,0.00019861,2]
[367208314,1750702249562,-458.38151557,0.00019861,2]
[367208315,1750702249573,-674.65,0.00019861,2]
[367208316,1750702249584,-289.88753324,0.00019862,2]
[367208317,1750702249599,-498.37,0.00019862,2]
[367208318,1750702249611,-460.0,0.00019862,2]
[367208319,1750702249623,-151.0,0.00019862,2]
[367208320,1750702249634,-460.0,0.00019862,2]
[367208321,1750702249646,-460.0,0.00019862,2]
[367208322,1750702249657,-493.35,0.00019862,2]
[367208323,1750702249679,-460.0,0.00019862,2]
[367208324,1750702249690,-173.023809,0.00019862,2]
[367208325,1750702249702,-715.51,0.00019862,2]
[367208326,1750702249713,-460.0,0.00019862,2]
[367208327,1750702249725,-460.0,0.00019862,2]
[367208328,1750702249736,-1726.48,0.00019862,2]
[367208329,1750702249748,-460.0,0.00019862,2]
[367208330,1750702249760,-924.54,0.00019862,2]
[367208331,1750702249771,-460.0,0.00019862,2]
[367208332,1750702249781,-460.0,0.00019862,2]
[367208333,1750702249792,-460.0,0.00019862,2]
[367208334,1750702249802,-460.0,0.00019862,2]
[367208335,1750702249812,-460.0,0.00019862,2]
[367208336,1750702249823,-460.0,0.00019862,2]
[367208337,1750702249833,-499.53,0.00019862,2]
[367208338,1750702249845,-460.0,0.00019862,2]
[367208339,1750702249855,-200.774812,0.00019862,2]
[367208340,1750702249866,-200.774812,0.00019862,2]
[367208341,1750702249877,-460.0,0.00019862,2]
[367208342,1750702249888,-500.0,0.00019862,2]
[367208343,1750702249899,-460.0,0.00019862,2]
[367208344,1750702249909,-714.86,0.00019862,2]
[367208345,1750702249920,-460.0,0.00019862,2]
[367208346,1750702249931,-460.0,0.00019862,2]
[367208347,1750702249942,-460.0,0.00019862,2]
[367208348,1750702249952,-646.96,0.00019862,2]
[367208349,1750702249963,-312.71694233,0.00019862,2]
[367208350,1750702249974,-151.0,0.00019862,2]
[367208351,1750702249985,-151.0,0.00019862,2]
[367208352,1750702249995,-819.18,0.00019862,2]
[367208353,1750702250006,-194.186962,0.00019862,2]
[367208354,1750702250017,-590.17,0.00019862,2]
[367208355,1750702250030,-194.186962,0.00019862,2]
[367208356,1750702250040,-205.184865,0.00019862,2]
[367208357,1750702250051,-205.184865,0.00019862,2]
[367208358,1750702250064,-836.54,0.00019862,2]
[367208359,1750702250076,-180.83188744,0.00019862,2]
[367208360,1750702250086,-460.0,0.00019862,2]
[367208361,1750702250098,-460.0,0.00019862,2]
[367208362,1750702250109,-151.0,0.00019862,2]
[367208363,1750702250119,-151.0,0.00019862,2]
[367208364,1750702250131,-151.0,0.00019862,2]
[367208365,1750702250141,-460.0,0.00019862,2]
[367208366,1750702250152,-460.0,0.00019862,2]
[367208367,1750702250168,-151.0,0.00019862,2]
[367208368,1750702250183,-1511.56,0.00019862,2]
[367208369,1750702250193,-170.62952487,0.00019862,2]
[367208370,1750702250204,-460.0,0.00019862,2]
[367208371,1750702250216,-303.644146,0.00019862,2]
[367208372,1750702250226,-303.644146,0.00019862,2]
[367208373,1750702250237,-396.31568514,0.00019862,2]
[367208374,1750702250247,-460.0,0.00019862,2]
[367208375,1750702250259,-460.0,0.00019862,2]
[367208376,1750702250487,-460.0,0.00019862,2]
[367208377,1750702250497,-151.0,0.00019862,2]
[367208378,1750702250507,-151.0,0.00019862,2]
[367208379,1750702250517,-158.13174672,0.00019862,2]
[367208380,1750702250527,-460.0,0.00019862,2]
[367208381,1750702250537,-460.0,0.00019862,2]
[367208382,1750702250547,-151.0,0.00019862,2]
[367208383,1750702250557,-151.0,0.00019862,2]
[367208384,1750702250566,-6333.44,0.00019862,2]
[367208385,1750702250576,-707.3,0.00019862,2]
[367208386,1750702250585,-735.42,0.00019862,2]
[367208387,1750702250596,-1601.96,0.00019862,2]
[367208388,1750702250606,-175.719527,0.00019862,2]
[367208389,1750702250616,-460.0,0.00019862,2]
[367208390,1750702250626,-183.723989,0.00019862,2]
[367208391,1750702250638,-1171.058408,0.00019862,2]
[367208392,1750702250648,-183.723989,0.00019862,2]
[367208393,1750702250658,-1171.058408,0.00019862,2]
[367208394,1750702250673,-151.0,0.00019862,2]
[367208395,1750702250683,-460.0,0.00019862,2]
[367208396,1750702250692,-151.0,0.00019862,2]
[367208397,1750702250702,-460.0,0.00019862,2]
[367208398,1750702250712,-460.0,0.00019862,2]
[367208399,1750702250721,-356.626254,0.00019862,2]
[367208400,1750702250731,-356.626254,0.00019862,2]
[367208401,1750702250742,-460.0,0.00019862,2]
[367208402,1750702250751,-151.0,0.00019863,2]
[367208403,1750702250761,-1201.637698,0.00019863,2]
[367208404,1750702250772,-1201.637698,0.00019863,2]
[367208405,1750702250781,-151.0,0.00019863,2]
[367208406,1750702250790,-151.0,0.00019863,2]
[367208407,1750702250800,-151.0,0.00019863,2]
[367208408,1750702250811,-151.0,0.00019863,2]
[367208409,1750702250820,-1168.664466,0.00019863,2]
[367208410,1750702250830,-151.0,0.00019863,2]
[367208411,1750702250839,-151.0,0.00019863,2]
[367208412,1750702250849,-1168.664466,0.00019863,2]
[367208413,1750702250858,-151.0,0.00019863,2]
[367208414,1750702250868,-303.644146,0.00019863,2]
[367208415,1750702250878,-303.644146,0.00019863,2]
[367208416,1750702250887,-151.0,0.00019863,2]
[367208417,1750702250897,-201.374993,0.00019863,2]
[367208418,1750702250919,-151.0,0.00019863,2]
[367208419,1750702250931,-402.544214,0.00019863,2]
[367208420,1750702250941,-402.544214,0.00019863,2]
[367208421,1750702250951,-400.0,0.00019864,2]
[367208422,1750702250962,-460.0,0.00019864,2]
[367208423,1750702250972,-151.0,0.00019864,2]
[367208424,1750702250983,-334.634876,0.00019864,2]
[367208425,1750702250994,-195.596995,0.00019864,2]
[367208426,1750702251004,-195.596995,0.00019864,2]
[367208427,1750702251014,-1201.637698,0.00019864,2]
[367208428,1750702251025,-1201.637698,0.00019864,2]
[367208429,1750702251036,-976.76,0.00019864,2]
[367208430,1750702251045,-205.64489004,0.00019864,2]
[367208431,1750702251056,-1385.55,0.00019864,2]
[367208432,1750702251066,-200.774812,0.00019864,2]
[367208433,1750702251076,-200.774812,0.00019864,2]
[367208434,1750702251087,-460.0,0.00019864,2]
[367208435,1750702251097,-221.23,0.00019864,2]
[367208436,1750702251108,-151.0,0.00019864,2]
[367208437,1750702251118,-3985.75,0.00019864,2]
[367208438,1750702251128,-541.28,0.00019864,2]
[367208439,1750702251138,-1120.09,0.00019864,2]
[367208440,1750702251148,-460.0,0.00019864,2]
[367208441,1750702251158,-460.0,0.00019864,2]
[367208442,1750702251170,-194.186962,0.00019864,2]
[367208443,1750702251180,-857.29,0.00019864,2]
[367208444,1750702251190,-194.186962,0.00019864,2]
[367208445,1750702251200,-205.184865,0.00019864,2]
[367208446,1750702251210,-205.184865,0.00019864,2]
[367208447,1750702251219,-460.0,0.00019864,2]
[367208448,1750702251229,-173.77,0.00019864,2]
[367208449,1750702251239,-460.0,0.00019864,2]
[367208450,1750702251249,-518.26,0.00019864,2]
[367208451,1750702251259,-1168.664466,0.00019864,2]
[367208452,1750702251270,-1168.664466,0.00019864,2]
[367208453,1750702251283,-758.45,0.00019864,2]
[367208454,1750702251292,-460.0,0.00019864,2]
[367208455,1750702251302,-460.0,0.00019864,2]
[367208456,1750702251312,-460.0,0.00019864,2]
[367208457,1750702251322,-745.09,0.00019864,2]
[367208458,1750702251332,-460.0,0.00019864,2]
[367208459,1750702251342,-460.0,0.00019864,2]
[367208460,1750702251352,-460.0,0.00019864,2]
[367208461,1750702251363,-897.24,0.00019864,2]
[367208462,1750702251374,-460.0,0.00019864,2]
[367208463,1750702251384,-460.0,0.00019864,2]
[367208464,1750702251396,-1055.93,0.00019864,2]
[367208465,1750702251406,-996.88,0.00019864,2]
[367208466,1750702251418,-183.723989,0.00019864,2]
[367208467,1750702251428,-1171.058408,0.00019864,2]
[367208468,1750702251438,-183.723989,0.00019864,2]
[367208469,1750702251447,-1171.058408,0.00019864,2]
[367208470,1750702251457,-460.0,0.00019864,2]
[367208471,1750702251468,-785.22,0.00019864,2]
[367208472,1750702251478,-648.84,0.00019864,2]
[367208473,1750702251487,-842.28,0.00019864,2]
[367208474,1750702251497,-1150.01,0.00019864,2]
[367208475,1750702251507,-151.0,0.00019865,2]
[367208476,1750702251517,-219.159322,0.00019866,2]
[367208477,1750702251528,-151.0,0.00019866,2]
[367208478,1750702251539,-151.0,0.00019866,2]
[367208479,1750702251551,-460.0,0.00019866,2]
[367208480,1750702251561,-460.0,0.00019866,2]
[367208481,1750702251571,-730.14,0.00019866,2]
[367208482,1750702251582,-248.227502,0.00019866,2]
[367208483,1750702251592,-151.0,0.00019866,2]
[367208484,1750702251603,-334.634876,0.00019866,2]
[367208485,1750702251613,-151.0,0.00019866,2]
[367208486,1750702251623,-334.634876,0.00019866,2]
[367208487,1750702251633,-181.696044,0.00019866,2]
[367208488,1750702251644,-181.696044,0.00019866,2]
[367208489,1750702251654,-151.0,0.00019866,2]
[367208490,1750702251666,-151.0,0.00019866,2]
[367208491,1750702251675,-195.596995,0.00019866,2]
[367208492,1750702251685,-195.596995,0.00019866,2]
[367208493,1750702251695,-164.96795,0.00019866,2]
[367208494,1750702251704,-164.96795,0.00019866,2]
[367208495,1750702251714,-592.57,0.00019866,2]
[367208496,1750702251724,-1201.637698,0.00019866,2]
[367208497,1750702251734,-1201.637698,0.00019866,2]
[367208498,1750702251743,-460.0,0.00019866,2]
[367208499,1750702251753,-727.02,0.00019866,2]
[367208500,1750702251763,-223.77273256,0.00019866,2]
[367208501,1750702251773,-200.774812,0.00019866,2]
[367208502,1750702251782,-200.774812,0.00019866,2]
[367208503,1750702251792,-460.0,0.00019866,2]
[367208504,1750702251802,-460.0,0.00019866,2]
[367208505,1750702251812,-460.0,0.00019866,2]
[367208506,1750702251823,-460.0,0.00019866,2]
[367208507,1750702251835,-460.0,0.00019866,2]
[367208508,1750702251846,-460.0,0.00019866,2]
[367208509,1750702251856,-194.186962,0.00019866,2]
[367208510,1750702251867,-194.186962,0.00019866,2]
[367208511,1750702251877,-402.544214,0.00019866,2]
[367208512,1750702251888,-402.544214,0.00019866,2]
[367208513,1750702251898,-151.0,0.00019866,2]
[367208514,1750702251907,-151.0,0.00019866,2]
[367208515,1750702251921,-356.626254,0.00019866,2]
[367208516,1750702251931,-356.626254,0.00019866,2]
[367208517,1750702251942,-500.0,0.00019873,2]
[367208518,1750702251952,-500.0,0.00019873,2]
[367208519,1750702251961,-500.0,0.00019873,2]
[367208520,1750702251971,-198.40910396,0.00019873,2]
[367208521,1750702251980,-500.0,0.00019873,2]
[367208522,1750702251990,-403.83542465,0.00019873,2]
[367208523,1750702251999,-554.98031395,0.00019873,2]
[367208524,1750702252009,-500.0,0.00019873,2]
[367208525,1750702252019,-500.0,0.00019873,2]
[367208526,1750702252029,-500.0,0.00019873,2]
[367208527,1750702252039,-209.38262339,0.00019873,2]
[367208528,1750702252048,-500.0,0.00019873,2]
[367208529,1750702252059,-500.0,0.00019873,2]
[367208530,1750702252070,-500.0,0.00019873,2]
[367208531,1750702252082,-508.31677155,0.00019873,2]
[367208532,1750702252092,-500.0,0.00019873,2]
[367208533,1750702252103,-500.0,0.00019873,2]
[367208534,1750702252113,-500.0,0.00019873,2]
[367208535,1750702252124,-500.0,0.00019873,2]
[367208536,1750702252134,-500.0,0.00019873,2]
[367208537,1750702252145,-500.0,0.00019873,2]
[367208538,1750702252155,-500.0,0.00019873,2]
[367208539,1750702252169,-500.0,0.00019873,2]
[367208540,1750702252178,-500.0,0.00019873,2]
[367208541,1750702252188,-500.0,0.00019873,2]
[367208542,1750702252197,-500.0,0.00019873,2]
[367208543,1750702252207,-531.0677499,0.00019873,2]
[367208544,1750702252217,-500.0,0.00019873,2]
[367208545,1750702252226,-500.0,0.00019873,2]
[367208546,1750702252236,-500.0,0.00019873,2]
[367208547,1750702252245,-500.0,0.00019873,2]